[Event "Titled Tuesday Blitz March 21 Late 2023"]
[White "Kovacevic, Radmila"]
[Black "Prieto Aranguren, Alain"]
[WhiteFideId "933171"]
[BlackFideId "2268906"]
[WhiteElo "2194"]
[BlackElo "2209"]
[Result "1-0"]
[Round "10"]
[TimeControl "180+2"]
[Date "2023.03.21"]
[WhiteClock "0:01:25"]
[BlackClock "0:01:58"]

1. e4 {[%clk 0:02:57]}  c6 {[%clk 0:02:56]} 2. d4 {[%clk 0:02:55]}  d5 {[%clk 0:02:57]} 3. exd5 {[%clk 0:02:55]}  cxd5 {[%clk 0:02:58]} 4. Bd3 {[%clk 0:02:55]}  Nc6 {[%clk 0:02:58]} 5. Ne2 {[%clk 0:02:53]}  Qc7 {[%clk 0:02:59]} 6. Bf4 {[%clk 0:02:52]}  Qb6 {[%clk 0:02:52]} 7. Nbc3 {[%clk 0:02:50]}  Nf6 {[%clk 0:02:51]} 8. Nb5 {[%clk 0:02:47]}  e5 {[%clk 0:02:46]} 9. dxe5 {[%clk 0:02:42]}  Ne4 {[%clk 0:02:46]} 10. Bxe4 {[%clk 0:02:32]}  dxe4 {[%clk 0:02:46]} 11. Nd6+ {[%clk 0:02:14]}  Bxd6 {[%clk 0:02:23]} 12. Qxd6 {[%clk 0:02:09]}  Qxb2 {[%clk 0:02:21]} 13. O-O {[%clk 0:02:07]}  Qxc2 {[%clk 0:02:19]} 14. Rfe1 {[%clk 0:02:01]}  Be6 {[%clk 0:02:17]} 15. Rac1 {[%clk 0:01:57]}  Qa4 {[%clk 0:02:09]} 16. Bg5 {[%clk 0:01:49]}  h6 {[%clk 0:02:02]} 17. Rxc6 {[%clk 0:01:41]}  hxg5 {[%clk 0:02:01]} 18. Rc7 {[%clk 0:01:40]}  Bd7 {[%clk 0:01:58]} 19. Nc3 {[%clk 0:01:25]} 1-0


[Site "https://www.chess.com"]

[Event "Titled Tuesday Blitz March 21 Late 2023"]
[White "Stanisz, Patryk"]
[Black "Oliveira, Tiago Batista"]
[WhiteFideId "1123106"]
[BlackFideId "2108291"]
[WhiteElo "2069"]
[BlackElo "1962"]
[Result "1-0"]
[Round "10"]
[TimeControl "180+2"]
[Date "2023.03.21"]
[WhiteClock "0:00:46"]
[BlackClock "0:00:19"]

1. d4 {[%clk 0:02:58]}  Nf6 {[%clk 0:02:50]} 2. c4 {[%clk 0:02:57]}  g6 {[%clk 0:02:44]} 3. Nc3 {[%clk 0:02:57]}  d5 {[%clk 0:02:44]} 4. Nf3 {[%clk 0:02:57]}  Bg7 {[%clk 0:02:43]} 5. Qb3 {[%clk 0:02:57]}  dxc4 {[%clk 0:02:43]} 6. Qxc4 {[%clk 0:02:58]}  O-O {[%clk 0:02:41]} 7. Bf4 {[%clk 0:02:59]}  Na6 {[%clk 0:02:31]} 8. e4 {[%clk 0:02:57]}  c5 {[%clk 0:02:30]} 9. dxc5 {[%clk 0:02:58]}  Be6 {[%clk 0:02:30]} 10. Qb5 {[%clk 0:02:58]}  Rc8 {[%clk 0:02:26]} 11. c6 {[%clk 0:02:58]}  Rxc6 {[%clk 0:02:12]} 12. Qxb7 {[%clk 0:02:58]}  Rb6 {[%clk 0:02:10]} 13. Qxa7 {[%clk 0:02:53]}  Nb4 {[%clk 0:02:08]} 14. Rc1 {[%clk 0:02:22]}  Rc6 {[%clk 0:01:13]} 15. Qa4 {[%clk 0:01:25]}  Bd7 {[%clk 0:01:12]} 16. Qxb4 {[%clk 0:01:15]}  Rb6 {[%clk 0:00:53]} 17. Qa3 {[%clk 0:01:09]}  Nxe4 {[%clk 0:00:44]} 18. Be3 {[%clk 0:00:52]}  Re6 {[%clk 0:00:19]} 19. Bc4 {[%clk 0:00:46]} 1-0


[Site "https://www.chess.com"]

[Event "Titled Tuesday Blitz March 21 Late 2023"]
[White "Li, Hui"]
[Black "salgadoLO"]
[WhiteFideId "15400310"]
[WhiteElo "1967"]
[BlackElo "2186"]
[Result "0-1"]
[Round "10"]
[TimeControl "180+2"]
[Date "2023.03.21"]
[WhiteClock "0:00:01"]
[BlackClock "0:00:10"]

1. e4 {[%clk 0:03:00]}  c5 {[%clk 0:02:59]} 2. Nf3 {[%clk 0:03:00]}  e6 {[%clk 0:02:59]} 3. d4 {[%clk 0:03:01]}  cxd4 {[%clk 0:03:00]} 4. Nxd4 {[%clk 0:03:02]}  Nc6 {[%clk 0:03:00]} 5. Nc3 {[%clk 0:03:01]}  Qc7 {[%clk 0:02:59]} 6. Be2 {[%clk 0:03:01]}  a6 {[%clk 0:02:59]} 7. O-O {[%clk 0:03:02]}  b5 {[%clk 0:02:56]} 8. Be3 {[%clk 0:02:56]}  Bb7 {[%clk 0:02:55]} 9. Nxc6 {[%clk 0:02:54]}  dxc6 {[%clk 0:02:43]} 10. f4 {[%clk 0:02:52]}  Nf6 {[%clk 0:02:42]} 11. Bf3 {[%clk 0:02:50]}  Be7 {[%clk 0:02:39]} 12. e5 {[%clk 0:02:47]}  Nd5 {[%clk 0:02:39]} 13. Nxd5 {[%clk 0:02:43]}  cxd5 {[%clk 0:02:39]} 14. c3 {[%clk 0:02:42]}  Bc5 {[%clk 0:02:35]} 15. Bxc5 {[%clk 0:02:39]}  Qxc5+ {[%clk 0:02:34]} 16. Qd4 {[%clk 0:02:40]}  Qxd4+ {[%clk 0:02:26]} 17. cxd4 {[%clk 0:02:41]}  Rc8 {[%clk 0:02:25]} 18. Rfc1 {[%clk 0:02:40]}  Kd7 {[%clk 0:02:21]} 19. Kf2 {[%clk 0:02:31]}  Rc4 {[%clk 0:02:17]} 20. Rxc4 {[%clk 0:02:22]}  bxc4 {[%clk 0:02:17]} 21. b3 {[%clk 0:02:16]}  cxb3 {[%clk 0:02:04]} 22. axb3 {[%clk 0:02:17]}  Rc8 {[%clk 0:02:03]} 23. Ra2 {[%clk 0:02:07]}  Rc3 {[%clk 0:01:59]} 24. Rb2 {[%clk 0:02:07]}  Rd3 {[%clk 0:01:53]} 25. Ke2 {[%clk 0:01:58]}  Rxd4 {[%clk 0:01:52]} 26. b4 {[%clk 0:01:20]}  Rxf4 {[%clk 0:01:46]} 27. b5 {[%clk 0:01:16]}  a5 {[%clk 0:01:44]} 28. Ke1 {[%clk 0:01:04]}  Rb4 {[%clk 0:01:25]} 29. Ra2 {[%clk 0:00:38]}  Rxb5 {[%clk 0:01:23]} 30. Be2 {[%clk 0:00:38]}  Rc5 {[%clk 0:01:22]} 31. Rb2 {[%clk 0:00:38]}  Bc6 {[%clk 0:01:19]} 32. Rb6 {[%clk 0:00:37]}  Kc7 {[%clk 0:01:09]} 33. Rb3 {[%clk 0:00:34]}  a4 {[%clk 0:01:05]} 34. Rh3 {[%clk 0:00:33]}  h6 {[%clk 0:01:01]} 35. Rg3 {[%clk 0:00:32]}  g6 {[%clk 0:01:01]} 36. Rf3 {[%clk 0:00:32]}  Be8 {[%clk 0:00:58]} 37. Rh3 {[%clk 0:00:32]}  h5 {[%clk 0:00:57]} 38. Kd2 {[%clk 0:00:32]}  Ra5 {[%clk 0:00:50]} 39. Ra3 {[%clk 0:00:31]}  Kb6 {[%clk 0:00:49]} 40. Kc3 {[%clk 0:00:31]}  Kc5 {[%clk 0:00:49]} 41. Bd3 {[%clk 0:00:31]}  d4+ {[%clk 0:00:46]} 42. Kb2 {[%clk 0:00:28]}  Bb5 {[%clk 0:00:45]} 43. Bb1 {[%clk 0:00:22]}  Bc4 {[%clk 0:00:43]} 44. Rf3 {[%clk 0:00:20]}  a3+ {[%clk 0:00:38]} 45. Ka1 {[%clk 0:00:16]}  Ra7 {[%clk 0:00:37]} 46. h3 {[%clk 0:00:13]}  a2 {[%clk 0:00:32]} 47. Bc2 {[%clk 0:00:10]}  Kd5 {[%clk 0:00:27]} 48. g4 {[%clk 0:00:09]}  hxg4 {[%clk 0:00:26]} 49. hxg4 {[%clk 0:00:09]}  Kxe5 {[%clk 0:00:26]} 50. g5 {[%clk 0:00:08]}  d3 {[%clk 0:00:23]} 51. Bxd3 {[%clk 0:00:07]}  Bxd3 {[%clk 0:00:23]} 52. Rxd3 {[%clk 0:00:07]}  Kf5 {[%clk 0:00:21]} 53. Rg3 {[%clk 0:00:07]}  e5 {[%clk 0:00:21]} 54. Rg1 {[%clk 0:00:08]}  e4 {[%clk 0:00:20]} 55. Re1 {[%clk 0:00:08]}  Ra4 {[%clk 0:00:17]} 56. Rg1 {[%clk 0:00:06]}  Ke6 {[%clk 0:00:14]} 57. Rf1 {[%clk 0:00:05]}  Ra5 {[%clk 0:00:13]} 58. Rf6+ {[%clk 0:00:03]}  Ke7 {[%clk 0:00:12]} 59. Rf4 {[%clk 0:00:02]}  Rxg5 {[%clk 0:00:10]} 60. Rxe4+ {[%clk 0:00:02]}  Kd6 {[%clk 0:00:10]} 61. Kxa2 {[%clk 0:00:02]}  Rb5 {[%clk 0:00:10]} 62. Rd4+ {[%clk 0:00:01]}  Ke5 {[%clk 0:00:09]} 63. Rd8 {[%clk 0:00:01]}  f5 {[%clk 0:00:09]} 64. Re8+ {[%clk 0:00:02]}  Kf4 {[%clk 0:00:09]} 65. Rc8 {[%clk 0:00:02]}  g5 {[%clk 0:00:09]} 66. Rc4+ {[%clk 0:00:02]}  Kg3 {[%clk 0:00:09]} 67. Ka3 {[%clk 0:00:03]}  f4 {[%clk 0:00:09]} 68. Ka4 {[%clk 0:00:03]}  Rb8 {[%clk 0:00:09]} 69. Rc5 {[%clk 0:00:03]}  g4 {[%clk 0:00:09]} 70. Rc3+ {[%clk 0:00:04]}  f3 {[%clk 0:00:10]} 71. Ka5 {[%clk 0:00:03]}  Kg2 {[%clk 0:00:09]} 72. Ka6 {[%clk 0:00:03]}  g3 {[%clk 0:00:09]} 73. Ka7 {[%clk 0:00:04]}  Rb1 {[%clk 0:00:09]} 74. Rc2+ {[%clk 0:00:04]}  f2 {[%clk 0:00:10]} 75. Rd2 {[%clk 0:00:04]}  Kg1 {[%clk 0:00:10]} 76. Rd3 {[%clk 0:00:04]}  g2 {[%clk 0:00:10]} 77. Ra3 {[%clk 0:00:01]}  f1=Q {[%clk 0:00:09]} 78. Ra6 {[%clk 0:00:01]}  Ra1 {[%clk 0:00:09]} 79. Rxa1 {[%clk 0:00:01]}  Qxa1+ {[%clk 0:00:09]} 80. Kb6 {[%clk 0:00:01]}  Qc1 {[%clk 0:00:10]} 0-1


[Site "https://www.chess.com"]

[Event "Titled Tuesday Blitz March 21 Late 2023"]
[White "Picard, Romain"]
[Black "Marcolino, Daniel Mattos"]
[WhiteFideId "627216"]
[BlackFideId "2106841"]
[WhiteElo "2225"]
[BlackElo "2085"]
[Result "1-0"]
[Round "10"]
[TimeControl "180+2"]
[Date "2023.03.21"]
[WhiteClock "0:00:01"]
[BlackClock "0:00:02"]

1. e4 {[%clk 0:03:00]}  c6 {[%clk 0:02:59]} 2. d4 {[%clk 0:02:59]}  d5 {[%clk 0:03:00]} 3. e5 {[%clk 0:02:58]}  c5 {[%clk 0:03:01]} 4. Nf3 {[%clk 0:02:58]}  cxd4 {[%clk 0:03:00]} 5. Nxd4 {[%clk 0:02:59]}  Nc6 {[%clk 0:03:01]} 6. c4 {[%clk 0:02:59]}  Nxd4 {[%clk 0:02:49]} 7. Qxd4 {[%clk 0:02:51]}  dxc4 {[%clk 0:02:32]} 8. Qxd8+ {[%clk 0:02:49]}  Kxd8 {[%clk 0:02:32]} 9. Bxc4 {[%clk 0:02:49]}  e6 {[%clk 0:02:32]} 10. O-O {[%clk 0:02:46]}  Bc5 {[%clk 0:02:28]} 11. Rd1+ {[%clk 0:02:41]}  Ke7 {[%clk 0:02:28]} 12. Bg5+ {[%clk 0:02:40]}  f6 {[%clk 0:02:28]} 13. Bh4 {[%clk 0:02:25]}  Nh6 {[%clk 0:02:22]} 14. Nc3 {[%clk 0:02:22]}  Nf5 {[%clk 0:02:18]} 15. exf6+ {[%clk 0:02:21]}  gxf6 {[%clk 0:02:18]} 16. Bxf6+ {[%clk 0:02:21]}  Kxf6 {[%clk 0:02:15]} 17. Ne4+ {[%clk 0:02:21]}  Kf7 {[%clk 0:02:15]} 18. Nxc5 {[%clk 0:02:21]}  b6 {[%clk 0:02:10]} 19. Ne4 {[%clk 0:02:02]}  Ke7 {[%clk 0:02:08]} 20. Rd3 {[%clk 0:01:35]}  Bb7 {[%clk 0:02:03]} 21. Ng5 {[%clk 0:01:33]}  Rhg8 {[%clk 0:01:50]} 22. Re1 {[%clk 0:00:30]}  Rxg5 {[%clk 0:01:43]} 23. Rxe6+ {[%clk 0:00:30]}  Kf8 {[%clk 0:01:35]} 24. Rf6+ {[%clk 0:00:30]}  Kg7 {[%clk 0:01:31]} 25. Rf7+ {[%clk 0:00:30]}  Kg6 {[%clk 0:01:29]} 26. Rxb7 {[%clk 0:00:31]}  Re8 {[%clk 0:01:21]} 27. h3 {[%clk 0:00:20]}  Re2 {[%clk 0:01:08]} 28. Bf7+ {[%clk 0:00:13]}  Kf6 {[%clk 0:01:03]} 29. Bb3 {[%clk 0:00:11]}  Rxb2 {[%clk 0:01:00]} 30. Rf3 {[%clk 0:00:10]}  Kg6 {[%clk 0:00:55]} 31. Rxa7 {[%clk 0:00:09]}  Nd4 {[%clk 0:00:55]} 32. Rg3 {[%clk 0:00:08]}  Rxg3 {[%clk 0:00:54]} 33. fxg3 {[%clk 0:00:08]}  Nxb3 {[%clk 0:00:54]} 34. axb3 {[%clk 0:00:08]}  Rxb3 {[%clk 0:00:55]} 35. g4 {[%clk 0:00:08]}  b5 {[%clk 0:00:54]} 36. Kh2 {[%clk 0:00:07]}  b4 {[%clk 0:00:55]} 37. h4 {[%clk 0:00:05]}  Rc3 {[%clk 0:00:53]} 38. Ra6+ {[%clk 0:00:05]}  Kg7 {[%clk 0:00:52]} 39. Rb6 {[%clk 0:00:05]}  Rc4 {[%clk 0:00:49]} 40. Kh3 {[%clk 0:00:04]}  Rc3+ {[%clk 0:00:49]} 41. g3 {[%clk 0:00:04]}  b3 {[%clk 0:00:50]} 42. g5 {[%clk 0:00:04]}  Kf7 {[%clk 0:00:28]} 43. h5 {[%clk 0:00:04]}  Kg7 {[%clk 0:00:23]} 44. Kh4 {[%clk 0:00:05]}  Kf7 {[%clk 0:00:18]} 45. g4 {[%clk 0:00:05]}  Rc2 {[%clk 0:00:14]} 46. Rxb3 {[%clk 0:00:03]}  Rh2+ {[%clk 0:00:14]} 47. Kg3 {[%clk 0:00:03]}  Rc2 {[%clk 0:00:14]} 48. Rb7+ {[%clk 0:00:03]}  Kg8 {[%clk 0:00:14]} 49. Rb6 {[%clk 0:00:01]}  Rc3+ {[%clk 0:00:14]} 50. Kh4 {[%clk 0:00:02]}  Rc1 {[%clk 0:00:14]} 51. g6 {[%clk 0:00:02]}  Rh1+ {[%clk 0:00:13]} 52. Kg3 {[%clk 0:00:02]}  Rg1+ {[%clk 0:00:13]} 53. Kf3 {[%clk 0:00:02]}  Rf1+ {[%clk 0:00:13]} 54. Kg2 {[%clk 0:00:02]}  Rf4 {[%clk 0:00:13]} 55. Rb8+ {[%clk 0:00:02]}  Kg7 {[%clk 0:00:13]} 56. Kg3 {[%clk 0:00:02]}  Ra4 {[%clk 0:00:11]} 57. Rb7+ {[%clk 0:00:02]}  Kf6 {[%clk 0:00:10]} 58. Rf7+ {[%clk 0:00:03]}  Kg5 {[%clk 0:00:10]} 59. Rf5+ {[%clk 0:00:02]}  Kh6 {[%clk 0:00:11]} 60. gxh7 {[%clk 0:00:02]}  Kxh7 {[%clk 0:00:11]} 61. Kh4 {[%clk 0:00:02]}  Rb4 {[%clk 0:00:10]} 62. Rf6 {[%clk 0:00:02]}  Kg7 {[%clk 0:00:11]} 63. Ra6 {[%clk 0:00:03]}  Rb5 {[%clk 0:00:11]} 64. Ra7+ {[%clk 0:00:02]}  Kg8 {[%clk 0:00:10]} 65. Ra6 {[%clk 0:00:02]}  Kg7 {[%clk 0:00:10]} 66. Rc6 {[%clk 0:00:03]}  Kh7 {[%clk 0:00:09]} 67. Rc7+ {[%clk 0:00:03]}  Kg8 {[%clk 0:00:09]} 68. Rc6 {[%clk 0:00:04]}  Kg7 {[%clk 0:00:09]} 69. Rd6 {[%clk 0:00:04]}  Kh7 {[%clk 0:00:10]} 70. h6 {[%clk 0:00:04]}  Rc5 {[%clk 0:00:08]} 71. g5 {[%clk 0:00:04]}  Rb5 {[%clk 0:00:08]} 72. Kh5 {[%clk 0:00:04]}  Rc5 {[%clk 0:00:08]} 73. Rd7+ {[%clk 0:00:04]}  Kg8 {[%clk 0:00:08]} 74. Ra7 {[%clk 0:00:04]}  Rc8 {[%clk 0:00:08]} 75. Ra6 {[%clk 0:00:01]}  Kh8 {[%clk 0:00:08]} 76. Kg6 {[%clk 0:00:01]}  Rg8+ {[%clk 0:00:06]} 77. Kh5 {[%clk 0:00:01]}  Rc8 {[%clk 0:00:06]} 78. Ra5 {[%clk 0:00:02]}  Rb8 {[%clk 0:00:07]} 79. g6 {[%clk 0:00:02]}  Rc8 {[%clk 0:00:06]} 80. Kg5 {[%clk 0:00:02]}  Rd8 {[%clk 0:00:06]} 81. h7 {[%clk 0:00:01]}  Rb8 {[%clk 0:00:03]} 82. Kh6 {[%clk 0:00:01]}  Rb7 {[%clk 0:00:02]} 83. Ra8+ {[%clk 0:00:01]} 1-0


[Site "https://www.chess.com"]

[Event "Titled Tuesday Blitz March 21 Late 2023"]
[White "Firouzja, Alireza"]
[Black "Kramnik, Vladimir"]
[WhiteFideId "12573981"]
[BlackFideId "4101588"]
[WhiteElo "2904"]
[BlackElo "2712"]
[Result "1-0"]
[Round "11"]
[TimeControl "180+2"]
[Date "2023.03.21"]
[WhiteClock "0:00:03"]
[BlackClock "0:00:01"]

1. d4 {[%clk 0:02:58]}  Nf6 {[%clk 0:02:59]} 2. Nc3 {[%clk 0:02:58]}  d5 {[%clk 0:02:56]} 3. Bf4 {[%clk 0:02:58]}  c6 {[%clk 0:02:55]} 4. Qd3 {[%clk 0:02:52]}  g6 {[%clk 0:02:47]} 5. f3 {[%clk 0:02:51]}  b5 {[%clk 0:02:44]} 6. a3 {[%clk 0:02:24]}  a5 {[%clk 0:02:40]} 7. e4 {[%clk 0:02:13]}  Na6 {[%clk 0:02:29]} 8. e5 {[%clk 0:02:10]}  Nh5 {[%clk 0:02:23]} 9. Be3 {[%clk 0:02:11]}  Ng7 {[%clk 0:02:18]} 10. Qd2 {[%clk 0:02:07]}  Nf5 {[%clk 0:02:09]} 11. Bf2 {[%clk 0:02:07]}  h5 {[%clk 0:02:08]} 12. Bd3 {[%clk 0:02:07]}  Bh6 {[%clk 0:02:03]} 13. f4 {[%clk 0:02:07]}  O-O {[%clk 0:02:00]} 14. Nf3 {[%clk 0:02:07]}  b4 {[%clk 0:01:54]} 15. Ne2 {[%clk 0:02:01]}  c5 {[%clk 0:01:50]} 16. dxc5 {[%clk 0:02:01]}  Qc7 {[%clk 0:01:49]} 17. axb4 {[%clk 0:01:54]}  Nxb4 {[%clk 0:01:48]} 18. O-O {[%clk 0:01:50]}  Rb8 {[%clk 0:01:35]} 19. Ned4 {[%clk 0:01:38]}  Nxd4 {[%clk 0:01:20]} 20. Nxd4 {[%clk 0:01:38]}  Nxd3 {[%clk 0:00:48]} 21. cxd3 {[%clk 0:01:36]}  Rb4 {[%clk 0:00:48]} 22. Be3 {[%clk 0:01:24]}  Bg7 {[%clk 0:00:38]} 23. Rac1 {[%clk 0:01:19]}  f6 {[%clk 0:00:36]} 24. e6 {[%clk 0:01:04]}  f5 {[%clk 0:00:31]} 25. Qf2 {[%clk 0:01:05]}  Rf6 {[%clk 0:00:26]} 26. Rfe1 {[%clk 0:01:02]}  a4 {[%clk 0:00:23]} 27. Rc2 {[%clk 0:00:55]}  Rf8 {[%clk 0:00:22]} 28. h3 {[%clk 0:00:51]}  Ba6 {[%clk 0:00:22]} 29. Rd1 {[%clk 0:00:46]}  Rfb8 {[%clk 0:00:21]} 30. Rdd2 {[%clk 0:00:38]}  a3 {[%clk 0:00:19]} 31. bxa3 {[%clk 0:00:38]}  Rb1+ {[%clk 0:00:18]} 32. Kh2 {[%clk 0:00:37]}  Ra1 {[%clk 0:00:18]} 33. Qg3 {[%clk 0:00:28]}  Kh7 {[%clk 0:00:16]} 34. Rb2 {[%clk 0:00:17]}  Rxb2 {[%clk 0:00:14]} 35. Rxb2 {[%clk 0:00:18]}  Bxd3 {[%clk 0:00:14]} 36. c6 {[%clk 0:00:14]}  Ba6 {[%clk 0:00:13]} 37. Rd2 {[%clk 0:00:11]}  Rxa3 {[%clk 0:00:13]} 38. Nf3 {[%clk 0:00:12]}  Bf6 {[%clk 0:00:11]} 39. Bd4 {[%clk 0:00:12]}  Kg7 {[%clk 0:00:07]} 40. Bxf6+ {[%clk 0:00:12]}  exf6 {[%clk 0:00:07]} 41. Rc2 {[%clk 0:00:08]}  Re3 {[%clk 0:00:05]} 42. Kg1 {[%clk 0:00:04]}  Bd3 {[%clk 0:00:03]} 43. Rb2 {[%clk 0:00:03]}  Qxc6 {[%clk 0:00:02]} 44. Qf2 {[%clk 0:00:02]}  Rxe6 {[%clk 0:00:01]} 45. Nd4 {[%clk 0:00:02]}  Qc1+ {[%clk 0:00:01]} 46. Kh2 {[%clk 0:00:03]} 1-0


[Site "https://www.chess.com"]

[Event "Titled Tuesday Blitz March 21 Late 2023"]
[White "Gholami Orimi, Mahdi"]
[Black "Erigaisi Arjun"]
[WhiteFideId "12558486"]
[BlackFideId "35009192"]
[WhiteElo "2363"]
[BlackElo "2737"]
[Result "1-0"]
[Round "11"]
[TimeControl "180+2"]
[Date "2023.03.21"]
[WhiteClock "0:00:51"]
[BlackClock "0:00:26"]

1. d4 {[%clk 0:03:00]}  d6 {[%clk 0:02:59]} 2. Nf3 {[%clk 0:03:00]}  g6 {[%clk 0:02:59]} 3. g3 {[%clk 0:03:00]}  Bg7 {[%clk 0:02:59]} 4. Bg2 {[%clk 0:03:01]}  Nd7 {[%clk 0:02:58]} 5. O-O {[%clk 0:02:59]}  e5 {[%clk 0:02:59]} 6. e4 {[%clk 0:02:57]}  Ngf6 {[%clk 0:02:57]} 7. Re1 {[%clk 0:02:55]}  O-O {[%clk 0:02:58]} 8. c4 {[%clk 0:02:56]}  Re8 {[%clk 0:02:46]} 9. Nc3 {[%clk 0:02:56]}  exd4 {[%clk 0:02:46]} 10. Nxd4 {[%clk 0:02:57]}  Ng4 {[%clk 0:02:47]} 11. h3 {[%clk 0:02:49]}  Nge5 {[%clk 0:02:46]} 12. Qe2 {[%clk 0:02:47]}  Nc5 {[%clk 0:02:43]} 13. Be3 {[%clk 0:02:47]}  Bd7 {[%clk 0:02:35]} 14. Rad1 {[%clk 0:02:45]}  Qc8 {[%clk 0:02:32]} 15. Kh2 {[%clk 0:02:45]}  h5 {[%clk 0:02:31]} 16. f4 {[%clk 0:02:38]}  Nc6 {[%clk 0:02:22]} 17. Qc2 {[%clk 0:02:31]}  h4 {[%clk 0:02:16]} 18. g4 {[%clk 0:02:30]}  Nxd4 {[%clk 0:02:14]} 19. Bxd4 {[%clk 0:02:31]}  Bxd4 {[%clk 0:02:15]} 20. Rxd4 {[%clk 0:02:31]}  Ne6 {[%clk 0:02:16]} 21. Qd2 {[%clk 0:02:29]}  Nxd4 {[%clk 0:02:14]} 22. Qxd4 {[%clk 0:02:30]}  Bc6 {[%clk 0:02:11]} 23. b4 {[%clk 0:02:30]}  b6 {[%clk 0:02:07]} 24. g5 {[%clk 0:02:20]}  Qe6 {[%clk 0:02:04]} 25. Nd1 {[%clk 0:01:50]}  f5 {[%clk 0:01:36]} 26. gxf6 {[%clk 0:01:38]}  Rf8 {[%clk 0:01:35]} 27. b5 {[%clk 0:01:29]}  Bb7 {[%clk 0:01:25]} 28. e5 {[%clk 0:01:29]}  Bxg2 {[%clk 0:01:21]} 29. Kxg2 {[%clk 0:01:30]}  Rad8 {[%clk 0:01:06]} 30. Qe4 {[%clk 0:01:29]}  Kh7 {[%clk 0:01:06]} 31. Nf2 {[%clk 0:01:21]}  Rf7 {[%clk 0:00:49]} 32. Re2 {[%clk 0:01:14]}  d5 {[%clk 0:00:43]} 33. cxd5 {[%clk 0:01:13]}  Rxd5 {[%clk 0:00:44]} 34. a4 {[%clk 0:01:02]}  Rdd7 {[%clk 0:00:36]} 35. Qf3 {[%clk 0:00:58]}  Rd4 {[%clk 0:00:33]} 36. Ne4 {[%clk 0:00:57]}  Kg8 {[%clk 0:00:29]} 37. Ng5 {[%clk 0:00:56]}  Qf5 {[%clk 0:00:29]} 38. Nxf7 {[%clk 0:00:51]}  Kxf7 {[%clk 0:00:26]} 39. e6+ {[%clk 0:00:51]}  Kxf6 {[%clk 0:00:26]} 40. e7 {[%clk 0:00:51]} 1-0


[Site "https://www.chess.com"]

[Event "Titled Tuesday Blitz March 21 Late 2023"]
[White "Bluebaum, Matthias"]
[Black "Zakhartsov, Vladimir"]
[WhiteFideId "24651516"]
[BlackFideId "4145097"]
[WhiteElo "2638"]
[BlackElo "2521"]
[Result "0-1"]
[Round "11"]
[TimeControl "180+2"]
[Date "2023.03.21"]
[WhiteClock "0:00:06"]
[BlackClock "0:00:05"]

1. d4 {[%clk 0:03:00]}  Nf6 {[%clk 0:02:58]} 2. c4 {[%clk 0:03:00]}  e6 {[%clk 0:02:59]} 3. Nc3 {[%clk 0:03:00]}  Bb4 {[%clk 0:02:58]} 4. e3 {[%clk 0:03:01]}  d5 {[%clk 0:02:56]} 5. Bd2 {[%clk 0:03:00]}  O-O {[%clk 0:02:54]} 6. Nf3 {[%clk 0:03:00]}  Re8 {[%clk 0:02:48]} 7. Rc1 {[%clk 0:02:59]}  c6 {[%clk 0:02:48]} 8. Bd3 {[%clk 0:02:58]}  Nbd7 {[%clk 0:02:45]} 9. O-O {[%clk 0:02:57]}  Bd6 {[%clk 0:02:45]} 10. e4 {[%clk 0:02:57]}  dxe4 {[%clk 0:02:44]} 11. Nxe4 {[%clk 0:02:57]}  Nxe4 {[%clk 0:02:45]} 12. Bxe4 {[%clk 0:02:58]}  e5 {[%clk 0:02:44]} 13. Bg5 {[%clk 0:02:26]}  Qc7 {[%clk 0:02:32]} 14. c5 {[%clk 0:02:25]}  Bf8 {[%clk 0:02:30]} 15. b4 {[%clk 0:02:18]}  h6 {[%clk 0:01:18]} 16. Bh4 {[%clk 0:02:18]}  exd4 {[%clk 0:01:12]} 17. Qxd4 {[%clk 0:02:17]}  Ne5 {[%clk 0:01:11]} 18. Bg3 {[%clk 0:02:12]}  Nxf3+ {[%clk 0:01:11]} 19. Bxf3 {[%clk 0:02:13]}  Qd7 {[%clk 0:01:10]} 20. Qc3 {[%clk 0:02:09]}  Qf5 {[%clk 0:01:07]} 21. Rfe1 {[%clk 0:02:00]}  Rxe1+ {[%clk 0:01:07]} 22. Rxe1 {[%clk 0:02:00]}  Be6 {[%clk 0:01:06]} 23. Be4 {[%clk 0:02:01]}  Qg5 {[%clk 0:01:04]} 24. h4 {[%clk 0:01:59]}  Qh5 {[%clk 0:00:54]} 25. Bb1 {[%clk 0:01:48]}  Rd8 {[%clk 0:00:44]} 26. Kh2 {[%clk 0:01:37]}  Be7 {[%clk 0:00:40]} 27. Re5 {[%clk 0:01:00]}  Qd1 {[%clk 0:00:38]} 28. Bc2 {[%clk 0:00:59]}  Qd2 {[%clk 0:00:36]} 29. Qxd2 {[%clk 0:00:46]}  Rxd2 {[%clk 0:00:37]} 30. Bb3 {[%clk 0:00:47]}  Bf6 {[%clk 0:00:29]} 31. Re4 {[%clk 0:00:38]}  Bxb3 {[%clk 0:00:29]} 32. axb3 {[%clk 0:00:39]}  Rd4 {[%clk 0:00:29]} 33. Re8+ {[%clk 0:00:08]}  Kh7 {[%clk 0:00:28]} 34. h5 {[%clk 0:00:08]}  Rxb4 {[%clk 0:00:23]} 35. Re3 {[%clk 0:00:09]}  Bd4 {[%clk 0:00:19]} 36. Re7 {[%clk 0:00:09]}  Bxc5 {[%clk 0:00:15]} 37. Rxf7 {[%clk 0:00:09]}  Bd4 {[%clk 0:00:16]} 38. Rd7 {[%clk 0:00:03]}  c5 {[%clk 0:00:15]} 39. f4 {[%clk 0:00:03]}  Rxb3 {[%clk 0:00:14]} 40. Bh4 {[%clk 0:00:04]}  a5 {[%clk 0:00:07]} 41. g4 {[%clk 0:00:05]}  a4 {[%clk 0:00:06]} 42. g5 {[%clk 0:00:05]}  hxg5 {[%clk 0:00:05]} 43. fxg5 {[%clk 0:00:06]}  a3 {[%clk 0:00:05]} 0-1


[Site "https://www.chess.com"]

[Event "Titled Tuesday Blitz March 21 Late 2023"]
[White "Alekseenko, Kirill"]
[Black "Van Foreest, Lucas"]
[WhiteFideId "4135539"]
[BlackFideId "1039792"]
[WhiteElo "2683"]
[BlackElo "2519"]
[Result "0-1"]
[Round "11"]
[TimeControl "180+2"]
[Date "2023.03.21"]
[WhiteClock "0:02:21"]
[BlackClock "0:02:22"]

1. d4 {[%clk 0:02:59]}  g5 {[%clk 0:02:59]} 2. f4 {[%clk 0:02:48]}  gxf4 {[%clk 0:02:58]} 3. Bxf4 {[%clk 0:02:45]}  d5 {[%clk 0:02:56]} 4. Nf3 {[%clk 0:02:45]}  Bf5 {[%clk 0:02:55]} 5. e3 {[%clk 0:02:45]}  Nd7 {[%clk 0:02:55]} 6. Bd3 {[%clk 0:02:45]}  Bg6 {[%clk 0:02:53]} 7. O-O {[%clk 0:02:45]}  Ngf6 {[%clk 0:02:53]} 8. c4 {[%clk 0:02:45]}  c6 {[%clk 0:02:53]} 9. Nc3 {[%clk 0:02:45]}  Bg7 {[%clk 0:02:53]} 10. Ne5 {[%clk 0:02:42]}  Nxe5 {[%clk 0:02:44]} 11. Bxe5 {[%clk 0:02:36]}  O-O {[%clk 0:02:42]} 12. cxd5 {[%clk 0:02:33]}  Nxd5 {[%clk 0:02:39]} 13. Bxg7 {[%clk 0:02:27]}  Kxg7 {[%clk 0:02:40]} 14. Qe2 {[%clk 0:02:24]}  e5 {[%clk 0:02:22]} 15. dxe5 {[%clk 0:02:21]}  Nxc3 {[%clk 0:02:22]} 0-1


[Site "https://www.chess.com"]